bitfinex-derivatives/quotes_ETHF0:USTF0_20250212
["timestamp","ask_amount","ask_price","bid_price","bid_amount"]
[1739367378510,0.77619,2576.8,2576.7,5.14027438]
[1739367379008,6.5420718,2576.8,2575.3,6.1042]
[1739367379210,3.2078,2576.0,2575.0,3.2078]
[1739367379411,0.77644,2576.0,2575.3,3.2078]
[1739367379711,0.77641,2576.1,2575.8,0.00582705]
[1739367380013,3.2078,2576.8,2575.8,0.00582705]
[1739367380518,3.2078,2576.5,2575.8,0.00582705]
[1739367380704,0.77617,2576.9,2575.8,0.00582705]
[1739367380907,0.00582705,2577.0,2575.9,5.06363942]
[1739367381108,0.00582705,2577.0,2575.9,8.27143942]
[1739367381308,2.51670455,2576.9,2575.8,0.00582705]
[1739367381510,2.51670455,2576.9,2575.8,3.21362705]
[1739367381713,3.98423,2576.0,2575.9,4.97395608]
[1739367381906,0.77643,2576.0,2575.8,0.00582705]
[1739367382215,3.98426,2575.9,2575.8,7.05e-06]
[1739367382414,9.61464586,2575.9,2574.7,3.2078]
[1739367382612,3.2078,2574.8,2573.7,3.2078]
[1739367382918,3.2078,2574.9,2573.7,3.2078]
[1739367383109,4.10008055,2574.7,2574.0,3.2078]
[1739367383313,4.10008055,2574.7,2574.2,3.2078]
[1739367383508,3.2078,2575.3,2574.3,40.8]
[1739367383722,3.2078,2575.5,2574.3,40.8]
[1739367383915,0.78265705,2574.7,2574.3,40.8]
[1739367384111,0.00582705,2574.7,2574.2,0.00582705]
[1739367384412,0.00582705,2574.7,2574.3,3.2078]
[1739367384720,3.2078,2576.3,2574.6,10.04730296]
[1739367384915,20.334,2577.3,2576.0,3.2078]
[1739367384916,3.2078,2577.3,2576.0,3.2078]
[1739367385115,3.2078,2576.4,2575.7,3.2078]
[1739367385421,3.2078,2576.4,2575.1,3.2078]
[1739367385618,2.60702173,2576.3,2575.4,3.2078]
[1739367385915,3.2078,2576.4,2574.8,6.83950296]
[1739367385916,3.2078,2576.4,2575.2,3.2078]
[1739367386216,0.00582705,2576.1,2575.7,3.2078]
[1739367386530,3.2078,2577.1,2576.0,3.2078]
[1739367386829,3.2078,2576.7,2576.5,0.01877338]
[1739367387121,3.2078,2577.5,2576.5,0.01877338]
[1739367387321,3.2078,2577.8,2576.5,0.40677338]
[1739367387517,3.2078,2578.2,2576.7,3.2078]
[1739367387716,0.77597,2577.6,2576.7,3.2078]
[1739367387916,0.77589,2577.8,2577.4,0.01877338]
[1739367388122,3.2078,2578.2,2577.4,0.01877338]
[1739367388321,3.2078,2577.5,2577.4,0.01877338]
[1739367388517,1.94006,2577.4,2575.2,6.83950296]
[1739367388721,3.2078,2576.8,2575.0,3.2078]
[1739367389019,0.7765,2575.8,2574.8,3.2078]
[1739367389223,0.77662,2575.4,2574.2,3.2078]
[1739367389422,0.90340202,2575.7,2574.2,3.2078]
[1739367389622,0.90340202,2575.7,2574.5,3.2078]
[1739367389819,3.2078,2576.5,2575.3,3.2078]
[1739367390022,3.2078,2576.5,2575.1,3.2078]
[1739367390218,0.77651,2575.8,2574.7,3.2078]
[1739367390522,3.2078,2576.2,2574.7,3.2078]
[1739367390718,0.77662,2575.4,2574.7,3.2078]
[1739367390915,3.51139044,2575.7,2575.0,3.2078]
[1739367391225,3.2078,2577.1,2575.6,3.2078]
[1739367391523,3.2078,2578.1,2576.7,3.2078]
[1739367391827,1.97450652,2578.9,2577.7,3.2078]
[1739367392025,3.2078,2578.8,2577.7,3.2078]
[1739367392220,3.2078,2577.8,2577.1,0.00582705]
[1739367392421,3.2078,2577.5,2577.1,0.00582705]
[1739367392822,3.2078,2577.2,2576.9,40.8]
[1739367393124,3.2078,2577.2,2575.8,3.2078]
[1739367393329,0.00582705,2577.7,2576.5,3.2078]
[1739367393625,0.00582705,2577.7,2576.9,3.2078]
[1739367393930,0.00582705,2577.7,2576.7,3.2078]
[1739367394227,3.2078,2577.5,2577.0,0.00582705]
[1739367394428,0.00582705,2577.7,2577.0,0.00582705]
[1739367394429,3.9839,2577.1,2577.0,0.00582705]
[1739367394624,0.00582705,2577.7,2577.0,0.00582705]
[1739367394829,0.00582705,2577.7,2577.1,44.0078]
[1739367395124,0.00582705,2577.7,2577.1,40.8]
[1739367395329,3.2078,2577.1,2575.5,3.2078]
[1739367395517,3.2078,2577.1,2573.8,1.52651166]
[1739367395518,3.2078,2575.6,2574.1,3.2078]
[1739367395834,3.2078,2574.6,2573.8,1.52651166]
[1739367396017,3.2078,2573.9,2572.7,44.0078]
[1739367396217,3.2078,2573.6,2572.7,44.0078]
[1739367396433,0.77722,2573.5,2572.7,44.0078]
[1739367396630,0.13592113,2573.5,2573.0,3.2078]
[1739367396928,0.00582705,2573.4,2572.9,0.00582705]
[1739367397322,3.2078,2573.0,2572.9,0.00582705]
[1739367397524,3.98514,2573.0,2572.9,7.05e-06]
[1739367397723,4.16639283,2573.0,2572.9,7.05e-06]
[1739367397923,9.98514,2573.0,2572.9,7.05e-06]
[1739367398327,14.15833107,2573.0,2572.9,7.05e-06]
[1739367398721,4.17319107,2573.0,2572.9,7.05e-06]
[1739367398921,4.95053107,2573.0,2572.9,7.05e-06]
[1739367399125,0.77734,2573.0,2572.9,7.05e-06]
[1739367399429,3.2078,2573.1,2572.9,7.05e-06]
[1739367399622,0.77734,2573.0,2572.9,7.05e-06]
[1739367399818,4.08845045,2573.0,2572.9,7.05e-06]
[1739367400323,6.0,2573.0,2572.9,7.05e-06]
[1739367400519,10.89885554,2573.0,2572.9,7.05e-06]
[1739367401227,10.12151554,2573.0,2572.0,0.0029334]
[1739367401434,3.98541,2572.1,2572.0,0.0029334]
[1739367401731,3.2078,2572.7,2572.0,0.0029334]
[1739367402024,3.21362705,2573.4,2572.3,3.2078]
[1739367402228,3.21362705,2573.4,2572.1,40.8]
[1739367402423,3.21362705,2573.4,2572.4,4.95251144]
[1739367402619,0.00582705,2573.4,2572.8,3.2078]
[1739367402820,20.347,2574.7,2573.0,3.2078]
[1739367403123,14.87590176,2576.4,2572.6,0.00582705]
[1739367403124,10.27274371,2575.7,2574.4,3.2078]
[1739367403327,7.06494371,2575.7,2574.9,3.2078]
[1739367403523,7.06494371,2575.7,2575.2,3.2078]
[1739367403723,3.2078,2577.4,2575.5,9.19287]
[1739367403931,3.2078,2576.8,2575.0,12.40170218]
[1739367404130,3.2078,2575.8,2575.0,3.2078]
[1739367404324,3.2078,2576.2,2575.0,3.2078]
[1739367404631,8.58498232,2574.7,2573.9,10.2642]
[1739367404923,8.58498232,2574.7,2574.0,5.14215898]
[1739367405129,8.58498232,2574.7,2574.4,3.2078]
[1739367405130,3.1409497,2574.7,2574.4,3.2078]
[1739367405530,3.1409497,2574.7,2574.5,4.93813679]
[1739367405725,14.84657115,2576.3,2574.5,4.93813679]
[1739367405927,14.84657115,2576.3,2575.5,3.2078]
[1739367406126,3.8848,2575.8,2575.5,3.2078]
[1739367406433,3.43388691,2575.7,2574.3,4.95064714]
[1739367406662,7.0926,2575.0,2574.4,3.2078]
[1739367406869,3.8848,2575.0,2574.4,3.2078]
[1739367407056,3.2078,2575.7,2574.5,40.8]
[1739367407348,0.00582705,2575.0,2574.5,45.93800257]
[1739367407544,3.55662363,2576.1,2574.9,3.2078]
[1739367407748,3.2078,2577.2,2575.9,3.2078]
[1739367407949,3.2078,2577.8,2576.8,3.2078]
[1739367408138,9.97996001,2578.4,2577.1,3.2078]
[1739367408329,3.8848,2578.0,2577.2,3.2078]
[1739367408524,3.2078,2577.9,2577.2,5.15004953]
[1739367408727,3.8848,2578.2,2577.4,3.2078]
[1739367408921,0.00582705,2577.9,2577.3,0.00582705]
[1739367409125,3.21362705,2577.9,2577.3,5.15587658]
[1739367409328,3.8848,2577.4,2576.4,3.2078]
[1739367409524,0.00582705,2577.9,2576.1,3.2078]
[1739367409525,3.8848,2576.4,2576.1,3.2078]
[1739367409721,3.8848,2576.9,2576.1,3.2078]
[1739367409924,3.2078,2577.3,2576.0,3.2078]
[1739367410225,3.8848,2576.6,2576.3,3.2078]
[1739367410432,1.83933302,2577.2,2576.3,3.2078]
[1739367410629,3.2078,2580.0,2577.8,3.2078]
[1739367410929,4.35516842,2579.3,2578.4,3.2078]
[1739367411134,0.47036842,2579.3,2578.7,3.2078]
[1739367411334,3.2078,2580.1,2578.7,3.2078]
[1739367411530,3.2078,2580.7,2579.3,3.2078]
[1739367411829,9.97413296,2579.5,2579.4,4.99982901]
[1739367412034,12.88184135,2581.9,2579.4,4.99982901]
[1739367412035,10.03681774,2581.4,2579.4,5.38782901]
[1739367412230,3.8848,2581.2,2580.2,3.2078]
[1739367412432,10.03681774,2581.4,2580.8,3.2078]
[1739367412632,10.03681774,2581.4,2580.4,40.8]
[1739367412837,7.0926,2580.5,2580.4,40.8]
[1739367413032,7.0926,2580.5,2580.0,4.99873882]
[1739367413233,7.0926,2580.5,2579.6,5.6409]
[1739367413234,3.8848,2580.3,2579.6,5.6409]
[1739367413539,0.00581531,2580.7,2580.2,0.00581531]
[1739367414039,3.98291,2580.4,2580.3,4.93435817]
[1739367414234,3.8848,2580.3,2578.7,3.2078]
[1739367414536,3.2078,2579.9,2578.2,4.8319]
[1739367414735,10.38216584,2580.4,2578.2,4.8319]
[1739367414736,3.8848,2578.8,2578.2,4.8319]
[1739367414938,3.8848,2579.1,2578.3,4.92297725]
[1739367415128,3.8848,2578.6,2578.0,3.2078]
[1739367415331,3.8848,2578.6,2577.6,3.2078]
[1739367415538,0.00581531,2579.0,2578.4,0.00581531]
[1739367415831,3.2078,2580.9,2578.9,3.2078]
[1739367416038,3.8848,2580.3,2579.5,3.2078]
[1739367416230,3.8848,2579.3,2579.0,5.08672623]
[1739367416437,10.38216584,2580.9,2578.3,3.2078]
[1739367416438,3.8848,2579.0,2578.3,3.2078]
[1739367416637,3.8848,2578.6,2577.7,3.2078]
[1739367416845,3.8848,2578.8,2578.3,5.08672623]
[1739367417027,3.8848,2578.8,2577.8,0.388]
[1739367417233,0.00581531,2578.4,2577.9,0.00581531]
[1739367417434,0.00581531,2578.4,2578.0,3.2078]
[1739367417634,3.2078,2579.7,2578.3,10.02744354]
[1739367417938,3.8848,2579.3,2578.5,3.2078]
[1739367418236,3.8848,2579.1,2578.6,4.99344518]
[1739367418440,13.5892,2580.8,2578.9,6.81964354]
[1739367418640,3.2078,2581.2,2579.9,6.81964354]
[1739367418940,3.2078,2581.2,2578.7,4.25813554]
[1739367418941,3.8848,2579.9,2579.7,3.2078]
[1739367419146,3.89061531,2580.1,2579.4,6.81964354]
[1739367419435,0.00581531,2580.1,2579.8,3.2078]
[1739367419642,0.00581531,2580.1,2579.7,3.2078]
[1739367419939,0.00581531,2580.1,2579.9,4.96094899]
[1739367420140,0.00581531,2580.1,2580.0,3.2078]
[1739367420341,0.77477,2581.6,2580.1,0.7752]
[1739367420542,3.8848,2581.5,2580.7,3.2078]
[1739367420741,3.2078,2580.9,2580.2,5.12689759]
[1739367421043,3.98294,2580.3,2580.2,4.20480759]
[1739367421239,7.0926,2580.3,2579.6,5.12689759]
[1739367421438,3.2078,2580.6,2579.8,3.2078]
[1739367421741,0.77475,2581.6,2580.5,3.2078]
[1739367421947,0.77472,2581.7,2580.5,6.81964354]
[1739367422238,0.77484,2581.3,2581.2,40.8]
[1739367422439,0.77502,2580.7,2580.0,6.82545885]
[1739367422637,3.8848,2581.3,2580.0,6.82545885]
[1739367422638,3.8848,2580.1,2580.0,0.00581531]
[1739367422839,4.66,2580.1,2580.0,0.00581531]
[1739367423041,3.2078,2580.2,2579.1,0.388]
[1739367423242,0.00376066,2580.3,2579.7,3.2078]
[1739367423444,3.2078,2581.9,2580.2,41.57516]
[1739367423642,3.8848,2582.1,2581.4,3.2078]
[1739367423941,3.2078,2583.1,2581.7,6.81964354]
[1739367424136,3.8848,2581.9,2581.5,5.05249558]
[1739367424350,3.8848,2581.9,2580.7,3.2078]
[1739367424351,3.2078,2582.0,2580.7,3.2078]
[1739367424539,3.8848,2580.8,2579.4,3.2078]
[1739367424740,3.8848,2579.5,2579.1,3.2078]
[1739367424938,3.8848,2579.4,2579.0,4.97430592]
[1739367425135,8.75721354,2580.7,2578.7,4.97430592]
[1739367425136,3.8848,2579.1,2578.7,4.97430592]
[1739367425344,0.77552,2579.1,2578.0,3.2078]
[1739367425544,3.2078,2579.3,2578.0,10.02744354]
[1739367425740,7.0926,2578.7,2578.6,0.00986812]
[1739367425938,7.0926,2578.7,2577.5,3.2078]
[1739367426248,7.0926,2578.7,2577.2,5.13540046]
[1739367426249,3.8848,2578.0,2577.2,5.13540046]
[1739367426435,3.2078,2578.5,2577.4,3.2078]
[1739367426636,3.8848,2577.6,2577.1,3.2078]
[1739367426837,3.8848,2577.4,2577.1,3.2078]
[1739367427044,3.2078,2578.1,2577.1,3.2078]
[1739367427241,3.8848,2577.5,2577.2,5.07120908]
[1739367427642,3.8848,2577.3,2577.1,0.00581531]
[1739367427843,7.0926,2577.2,2575.4,3.2078]
[1739367428045,3.8848,2576.5,2575.7,3.2078]
[1739367428244,3.2078,2577.0,2575.4,5.14886691]
[1739367428453,3.8848,2576.0,2575.6,3.2078]
[1739367428750,3.8848,2575.9,2575.4,0.07765783]
[1739367428949,3.8848,2575.5,2575.2,3.2078]
[1739367429143,3.8848,2575.5,2573.9,0.77705]
[1739367429144,3.8848,2575.3,2574.8,3.2078]
[1739367429347,3.8848,2575.2,2574.5,3.2078]
[1739367429541,3.8848,2575.3,2575.1,0.00581531]
[1739367429740,3.2078,2575.2,2575.1,0.00581531]
[1739367429948,3.8848,2575.2,2575.1,0.00581531]
[1739367430147,17.12259298,2575.2,2574.5,3.2078]
[1739367430347,13.23779298,2575.2,2573.8,3.2078]
[1739367430548,3.8848,2574.2,2573.5,3.2078]
[1739367430749,3.8848,2573.8,2573.3,5.1213666]
[1739367430947,3.2078,2573.4,2572.6,3.2078]
[1739367431145,3.8848,2573.3,2572.6,3.2078]
[1739367431443,3.8848,2573.3,2572.9,3.2078]
[1739367431444,0.00582671,2573.3,2572.9,3.2078]
[1739367431643,0.00582671,2573.3,2573.2,3.2078]
[1739367431945,0.00582671,2573.3,2573.2,40.8]
[1739367432149,0.00582671,2573.3,2573.2,44.0078]
[1739367432659,14.26292443,2573.3,2573.2,40.8]
[1739367432841,0.77733,2573.1,2572.7,0.00582671]
[1739367433050,14.82171156,2573.3,2572.7,0.00582671]
[1739367433246,3.8848,2572.9,2572.7,0.00582671]
[1739367433447,10.37812443,2573.3,2572.7,0.00582671]
[1739367433448,3.8848,2572.8,2572.7,0.00582671]
[1739367433749,3.8848,2572.8,2572.7,40.80582671]
[1739367433950,14.25709772,2572.8,2572.7,40.8]
[1739367434148,17.46489772,2572.8,2572.0,0.0029334]
[1739367434349,7.0926,2572.1,2572.0,0.0029334]
[1739367434651,3.8848,2571.6,2570.8,3.2078]
[1739367434952,3.8848,2571.0,2570.3,3.2078]
[1739367435549,0.00582671,2570.9,2570.4,45.95683702]
[1739367435750,3.2078,2570.5,2570.4,6.71e-06]
[1739367435955,3.2078,2570.5,2568.4,3.2078]
[1739367436152,3.2078,2569.8,2568.7,3.2078]
[1739367436446,3.92186135,2569.7,2568.5,3.2078]
[1739367436648,3.92186135,2569.7,2568.8,3.2078]
[1739367436857,3.2078,2570.2,2568.7,3.2078]
[1739367437043,0.77831,2569.9,2569.1,3.2078]
[1739367437249,4.19889192,2570.1,2567.1,6.4436]
[1739367437250,0.0058393,2569.5,2569.2,3.2078]
[1739367437455,0.0058393,2569.5,2569.0,0.00393403]
[1739367437647,0.0058393,2569.5,2569.2,3.2078]
[1739367438154,0.0058393,2569.5,2569.0,3.21173403]
[1739367438355,0.0058393,2569.5,2569.3,3.2078]
[1739367438857,0.0058393,2569.5,2569.3,9.2078]
[1739367439057,23.5438,2570.9,2569.3,9.2078]
[1739367439362,4.48067834,2570.4,2569.6,3.2078]
[1739367439755,23.5438,2570.9,2569.6,3.2078]
[1739367439950,21.11397,2570.9,2569.6,3.2078]
[1739367440149,3.2078,2571.9,2570.2,3.2078]
[1739367440350,3.2078,2571.9,2570.5,3.2078]
[1739367440647,3.2078,2571.5,2570.3,4.96120746]
[1739367440852,0.77796,2571.0,2570.3,4.96120746]
[1739367441054,0.2723024,2571.4,2569.8,3.2078]
[1739367441252,4.30015259,2571.6,2569.8,6.81964354]
[1739367441447,9.9980043,2572.1,2571.0,3.2078]
[1739367441765,3.2078,2572.8,2572.0,40.8]
[1739367442055,3.2078,2573.1,2572.0,40.8]
[1739367442453,4.45394768,2573.1,2572.3,3.2078]
[1739367442655,3.2078,2574.3,2572.9,3.2078]
[1739367442853,0.09502009,2574.5,2573.5,3.2078]
[1739367443053,0.09502009,2574.5,2573.8,3.2078]
[1739367443249,0.09502009,2575.2,2574.4,3.2078]
[1739367443458,0.09502009,2575.2,2574.0,6.81964354]
[1739367443658,0.09502009,2576.0,2574.5,6.81964354]
[1739367443855,0.09502009,2576.0,2574.8,3.2078]
[1739367444064,0.09502009,2576.0,2575.5,3.2078]
[1739367444256,0.09502009,2576.6,2575.8,3.2078]
[1739367444557,3.2078,2576.2,2575.6,5.03909282]
[1739367444862,0.00582751,2575.7,2575.6,5.03909282]
[1739367445157,3.21362751,2575.7,2574.9,3.2078]
[1739367445365,0.00582751,2575.7,2575.6,0.00582751]
[1739367445555,0.00582751,2575.7,2575.6,40.80582751]
[1739367445856,6.00582751,2575.7,2575.6,0.00582751]
[1739367446060,11.67205572,2575.7,2573.5,6.81964354]
[1739367446252,11.67205572,2575.7,2573.8,40.8]
[1739367446253,3.2078,2574.6,2573.8,40.8]
[1739367446448,3.2078,2574.3,2573.4,3.2078]
[1739367446654,3.2078,2574.3,2572.7,3.2078]
[1739367446867,1.31217005,2574.5,2572.6,3.2078]
[1739367446868,3.2078,2573.9,2572.6,3.2078]
[1739367447056,3.2078,2573.3,2572.1,3.2078]
[1739367447262,0.2718053,2573.8,2573.2,3.2078]
[1739367447464,20.351,2574.1,2573.0,3.21362751]
[1739367447658,1.81036099,2574.0,2573.0,3.21362751]
[1739367447854,3.2078,2573.9,2573.0,3.21362751]
[1739367448052,20.351,2574.1,2573.0,3.21362751]
[1739367448053,3.2078,2573.4,2573.0,0.00582751]
[1739367448260,3.2078,2573.7,2573.0,0.00582751]
[1739367448557,0.37157999,2573.8,2573.0,0.00582751]
[1739367448558,0.00582751,2573.8,2573.0,3.21362751]
[1739367448964,3.2078,2573.7,2573.0,0.00582751]
[1739367449260,3.2078,2573.1,2571.8,3.2078]
[1739367449451,3.2078,2572.2,2571.4,3.2078]
[1739367449760,3.2078,2571.5,2570.5,3.2078]
[1739367449952,3.2078,2571.7,2570.2,3.2078]
[1739367450157,2.03550025,2571.4,2570.2,3.2078]
[1739367450354,3.2078,2571.3,2570.0,5.14002081]
[1739367450553,3.2078,2570.6,2569.9,3.2078]
[1739367450862,0.00582751,2571.1,2570.5,0.00582751]
[1739367451061,0.00582751,2571.1,2570.8,3.2078]
[1739367451362,0.44200052,2572.2,2570.9,13.15283301]
[1739367451558,0.44223688,2572.8,2571.9,3.2078]
[1739367451760,1.17015313,2572.8,2572.7,40.8]
[1739367452064,0.09502009,2573.2,2572.7,40.8]
[1739367452262,0.09502009,2573.2,2572.8,3.2078]
[1739367452457,0.44223688,2573.8,2573.1,3.2078]
[1739367452658,3.2078,2574.7,2573.4,3.2078]
[1739367452858,0.00582751,2573.2,2572.9,4.99313679]
[1739367453160,3.2078,2573.0,2571.7,3.2078]
[1739367453359,0.77748,2572.6,2571.5,3.2078]
[1739367453560,4.70155183,2572.9,2571.8,3.2078]
[1739367453768,4.70155183,2572.9,2571.6,40.8]
[1739367453769,0.52645015,2572.8,2572.1,3.2078]
[1739367453964,0.77762,2572.1,2571.6,40.8]
[1739367454165,3.65247635,2572.6,2571.7,3.2078]
[1739367454376,0.44467635,2572.1,2571.6,40.8]
[1739367454559,0.19446792,2572.0,2571.6,40.80582751]
[1739367454869,0.44816661,2572.4,2571.7,8.15241357]
[1739367455172,1.39212794,2572.3,2571.8,3.2078]
[1739367455464,0.70249801,2572.2,2571.9,5.1653495]
[1739367455664,0.9455717,2572.1,2571.9,5.1653495]
[1739367455966,1.18865747,2572.0,2571.8,3.2078]
[1739367456157,0.50805942,2571.9,2571.6,40.80582751]
[1739367456357,1.39505012,2571.8,2571.6,40.80582751]
[1739367456566,1.15197582,2571.7,2571.6,40.80582751]
[1739367456762,1.39611104,2571.7,2571.6,40.80582751]
[1739367457066,1.18852623,2571.7,2571.6,40.80582751]
[1739367457560,1.18852623,2571.7,2571.6,0.00582751]
[1739367457762,1.18852623,2571.7,2571.6,6.00582751]
[1739367457961,1.05079258,2571.7,2571.6,51.81973501]
[1739367458162,0.36461862,2572.5,2571.6,45.81973501]
[1739367458363,0.77766,2572.0,2571.6,40.80582751]
[1739367458560,0.36461862,2571.9,2571.6,40.80582751]
[1739367458956,0.36461862,2571.9,2566.2,0.15487902]
[1739367458957,1.49097869,2571.8,2570.6,3.2078]
[1739367459165,0.77788,2571.3,2570.6,3.2078]
[1739367459567,3.2078,2570.7,2569.5,3.2078]
[1739367459864,3.2078,2570.6,2569.6,0.07783312]
[1739367460062,3.2078,2570.6,2568.7,3.2078]
[1739367460063,0.09699248,2569.8,2568.7,3.2078]
[1739367460264,0.09699248,2569.8,2568.4,0.3896]
[1739367460265,0.87140384,2569.7,2569.0,3.2078]
[1739367460463,0.87140384,2569.6,2568.8,11.96386148]
[1739367460660,0.09699248,2569.8,2569.5,3.2078]
[1739367460858,1.05086847,2569.7,2569.5,3.2078]
[1739367461167,4.25866847,2570.3,2569.1,0.00582751]
[1739367461365,1.05086847,2570.2,2569.1,0.00582751]
[1739367461571,1.05086847,2570.3,2569.6,3.2078]
[1739367461771,0.00582751,2570.4,2570.2,40.8]
[1739367462071,0.00582751,2570.4,2569.9,3.2078]
[1739367462566,0.00582751,2570.4,2570.3,6.81964354]
[1739367462770,1.22791821,2571.7,2570.4,0.7781]
[1739367462969,0.36461862,2571.7,2571.6,40.8]
[1739367463268,0.56591284,2571.7,2571.6,40.8]
[1739367463570,0.45260044,2573.1,2571.6,55.06349117]
[1739367463571,3.2078,2573.0,2571.6,55.06349117]
[1739367463766,3.2078,2573.0,2571.6,45.85569117]
[1739367463972,0.09708663,2571.9,2571.6,40.8]
[1739367464169,3.98511,2573.1,2571.8,10.02744354]
[1739367464470,3.2078,2573.1,2572.1,3.2078]
[1739367464666,3.2078,2572.8,2571.9,5.17025707]
[1739367464966,1.18273572,2574.0,2571.4,0.00582751]
[1739367464967,3.2078,2572.6,2571.4,0.00582751]
[1739367465168,3.2078,2572.6,2570.8,6.81964354]
[1739367465370,0.4524636,2572.8,2571.6,3.2078]
[1739367465564,0.00582751,2572.3,2571.9,3.2078]
[1739367465764,0.45278408,2573.8,2572.2,44.0078]
[1739367465978,3.2078,2574.1,2572.2,44.0078]
[1739367465979,3.66058408,2574.1,2573.1,3.2078]
[1739367466195,0.45311488,2573.8,2572.9,6.81964354]
[1739367466395,0.45311488,2573.6,2572.4,6.81964354]
[1739367466708,3.66091488,2573.3,2572.3,10.759]
[1739367466898,3.66091488,2573.3,2572.5,5.02640558]
[1739367466899,0.45311488,2573.0,2572.5,5.02640558]
[1739367467074,0.45894239,2573.3,2572.7,0.00582751]
[1739367467284,0.45311488,2573.8,2573.3,0.77724]
[1739367467496,0.77697,2574.3,2573.3,10.843]
[1739367467714,1.94124,2575.9,2572.8,9.07045819]
[1739367467715,0.77719,2573.5,2573.4,5.02633395]
[1739367467899,0.19436649,2573.5,2572.1,3.2078]
[1739367468093,3.2078,2572.8,2571.6,3.2078]
[1739367468297,3.2078,2572.8,2572.1,3.2078]
[1739367468482,0.77731,2573.1,2572.3,4.97408656]
[1739367468788,0.00578241,2572.5,2572.4,3.2078]
[1739367469044,0.20023356,2572.5,2571.9,0.00582751]
[1739367469200,0.19442387,2572.4,2571.9,0.00582751]
[1739367469396,0.19442568,2572.3,2571.9,0.00582751]
[1739367469586,3.40222568,2572.2,2571.9,0.00582751]
[1739367469778,0.77764,2572.0,2571.9,0.00582751]
[1739367469992,0.77764,2572.0,2571.9,7.51e-06]
[1739367469993,4.42294806,2572.0,2571.9,7.51e-06]
[1739367470194,4.64968589,2572.0,2571.9,7.51e-06]
[1739367470390,0.43750806,2572.0,2571.9,7.51e-06]
[1739367470788,0.76231872,2572.0,2571.9,0.04530549]
[1739367470983,1.00497813,2572.0,2571.9,0.04530549]
[1739367471298,4.6661154,2572.0,2571.9,0.04530549]
[1739367471479,5.23327872,2572.0,2571.9,0.04530549]
[1739367471691,0.77767,2571.9,2571.8,1.0]
[1739367471990,0.43755372,2571.9,2570.0,3.2078]
[1739367472193,0.56712926,2571.2,2570.3,3.2078]
[1739367472389,0.2430854,2571.1,2570.4,45.90977453]
[1739367472579,0.48629885,2571.0,2570.4,40.8]
[1739367472780,0.24319294,2570.9,2570.4,40.8]
[1739367472980,0.24318212,2570.8,2570.5,5.0339902]
[1739367473177,0.24894919,2571.0,2570.5,0.00582751]
[1739367473380,0.24312168,2570.7,2570.6,5.04673438]
[1739367473683,0.19455399,2570.7,2570.6,8.25453438]
[1739367473873,0.43765275,2570.7,2570.6,14.25453438]
[1739367474176,0.4537999,2571.1,2570.6,61.87417792]
[1739367474380,0.56721996,2571.5,2571.0,3.2078]
[1739367474582,0.56721996,2571.1,2570.6,52.66637792]
[1739367474871,0.24314307,2571.0,2570.6,47.61964354]
[1739367475078,1.02111387,2570.9,2570.6,40.8]
[1739367475280,3.98583,2570.7,2570.6,40.8]
[1739367475579,0.77807,2570.6,2570.5,0.00582751]
[1739367475776,1.02120387,2570.6,2570.5,0.00582751]
[1739367476073,1.10273051,2570.6,2570.5,6.00078805]
[1739367476275,0.00578241,2571.0,2570.5,11.16718864]
[1739367476573,0.77807,2570.6,2570.5,0.00078805]
[1739367476773,0.77815,2570.4,2569.9,4.11231422]
[1739367476981,3.2078,2570.6,2569.9,4.11231422]
[1739367477277,0.77812,2570.5,2570.0,3.2078]
[1739367477482,0.7783,2569.9,2569.6,3.2078]
[1739367477775,0.92716612,2569.8,2568.8,4.8225]
[1739367477976,0.56969077,2568.9,2568.8,4.8225]
[1739367478278,0.77845,2569.4,2569.0,0.00582751]
[1739367478477,0.00583919,2569.1,2569.0,0.00582751]
[1739367478673,0.78435919,2569.1,2569.0,0.00582751]
[1739367479076,0.89285677,2569.1,2569.0,0.00026434]
[1739367479275,0.89285677,2569.1,2569.0,6.00026434]
[1739367479481,0.89285677,2569.1,2568.4,3.2078]
[1739367479482,2.59856289,2569.1,2568.4,3.2078]
[1739367479675,2.5927337,2569.0,2568.1,10.02744354]
[1739367479879,3.2078,2568.5,2567.8,3.2078]
[1739367480077,0.92716612,2568.4,2567.8,3.2078]
[1739367480379,4.08399343,2568.0,2567.9,5.02425746]
[1739367480579,3.30514343,2568.0,2567.8,0.00583919]
[1739367480775,0.77889,2567.9,2567.8,0.00583919]
[1739367480975,0.00583919,2568.2,2567.8,0.00583919]
[1739367481273,3.2078,2568.1,2567.8,0.00583919]
[1739367481472,0.77888,2567.9,2567.8,0.00583919]
[1739367481868,0.77888,2567.9,2567.8,9.19e-06]
[1739367482275,5.04096083,2567.9,2567.8,9.19e-06]
[1739367482478,0.77888,2567.9,2567.8,9.19e-06]
[1739367482874,10.12820675,2567.9,2566.9,40.8]
[1739367483074,3.2078,2567.2,2565.6,3.2078]
[1739367483284,3.2078,2567.7,2566.2,3.2078]
[1739367483472,3.2078,2568.1,2566.8,3.2078]
[1739367483778,3.2078,2567.5,2566.3,4.98914783]
[1739367483976,3.2078,2567.5,2566.1,8.19694783]
[1739367484186,3.98705,2566.7,2566.6,0.00583919]
[1739367484485,0.00583919,2567.2,2566.6,0.00583919]
[1739367484788,0.00583919,2567.2,2564.9,0.3896]
[1739367484789,3.2078,2565.9,2564.4,0.34544945]
[1739367485083,6.81964354,2565.1,2563.5,19.69942121]
[1739367485271,3.2078,2564.8,2563.5,19.69942121]
[1739367485469,6.81964354,2565.1,2563.5,16.49162121]
[1739367485470,3.2078,2564.3,2563.5,16.49162121]
[1739367485671,6.81964354,2564.6,2563.5,16.49162121]
[1739367485672,3.98787,2564.0,2563.5,16.49162121]
[1739367485873,3.2078,2563.9,2563.5,16.49162121]
[1739367486077,3.2078,2563.9,2563.6,0.00583919]
[1739367486078,2.234,2563.9,2563.6,0.00583919]
[1739367486272,0.78013,2563.8,2563.6,0.00583919]
[1739367486479,0.00583919,2564.2,2563.6,0.00583919]
[1739367486881,0.00690176,2563.7,2563.6,0.00583919]
[1739367487178,0.00690176,2563.7,2562.0,10.49071552]
[1739367487179,3.2078,2563.9,2562.0,0.00301552]
[1739367487380,3.2078,2562.6,2562.0,0.00301552]
[1739367487681,0.78065,2562.1,2562.0,0.00301552]